bitfinex/quotes_SOLUSD_20240905
["timestamp","ask_amount","ask_price","bid_price","bid_amount"]
[1725572318430,0.40779777,129.15,129.14,19.3583]
[1725572318732,0.40779777,129.15,129.14,27.1018]
[1725572319116,0.40779777,129.15,129.14,72.1018]
[1725572319631,0.40779777,129.15,129.14,27.1018]
[1725572320113,0.40779777,129.15,129.14,72.1018]
[1725572320828,0.40779777,129.15,129.11,19.3618]
[1725572321032,0.40779777,129.15,129.12,7.7445]
[1725572321421,8.15069777,129.15,129.12,7.7445]
[1725572321934,0.40779777,129.15,129.12,7.8443602]
[1725572322136,0.40779777,129.15,129.13,19.3603]
[1725572322340,0.40779777,129.15,129.13,20.90864655]
[1725572322633,0.40779777,129.15,129.14,7.7435]
[1725572324326,20.0,129.18,129.15,7.7428]
[1725572327649,27.7415,129.18,129.14,7.7434]
[1725572327857,20.0,129.18,129.15,7.7428]
[1725572331561,10.60840052,129.28,129.14,66.0499]
[1725572331737,39.3641,129.32,129.15,51.2815]
[1725572331933,7.7359,129.27,129.22,7.7383]
[1725572332163,7.7359,129.27,129.23,7.7377]
[1725572332346,7.7351,129.28,129.23,7.738]
[1725572332548,7.7351,129.28,129.22,19.3462]
[1725572332549,7.7346,129.29,129.24,9.28436879]
[1725572332748,19.3298,129.34,129.24,9.28436879]
[1725572332749,7.734,129.3,129.25,7.7363]
[1725572332935,7.734,129.3,129.24,19.343]
[1725572333251,7.7348,129.29,129.25,7.7367]
[1725572333450,7.7339,129.3,129.25,7.7367]
[1725572334065,20.0,129.29,129.25,7.7367]
[1725572334365,7.7347,129.29,129.25,7.7367]
[1725572334840,7.7347,129.29,129.25,9.28370045]
[1725572335040,7.7336,129.31,129.26,7.7363]
[1725572335549,27.7344,129.3,129.25,7.7369]
[1725572335853,20.0,129.3,129.24,19.343]
[1725572336054,7.7351,129.28,129.24,27.0805]
[1725572336262,7.7345,129.29,129.24,27.0805]
[1725572336469,20.0,129.28,129.25,7.7368]
[1725572337155,20.0,129.29,129.25,7.7368]
[1725572338540,20.0,129.29,129.17,88.7068]
[1725572338757,7.7387,129.22,129.18,19.3518]
[1725572339351,19.3446,129.24,129.15,25.6381]
[1725572339539,65.0,129.23,129.15,25.6381]
[1725572339741,7.74,129.2,129.15,25.6381]
[1725572340042,7.7412,129.18,129.15,6.2815]
[1725572340251,7.7412,129.18,129.13,0.0998602]
[1725572340457,7.7412,129.18,129.13,7.8439602]
[1725572341145,7.7405,129.19,129.14,7.7435]
[1725572341447,20.0,129.18,129.14,7.7435]
[1725572342575,45.0,129.23,129.13,0.0998602]
[1725572342859,7.7386,129.23,129.18,7.741]
[1725572343064,20.0,129.22,129.16,19.3547]
[1725572343251,20.0,129.27,129.16,19.3547]
[1725572344058,45.0,129.26,129.16,19.3547]
[1725572344367,7.7388,129.22,129.17,7.7417]
[1725572344550,20.0,129.21,129.17,7.7417]
[1725572344862,20.0,129.21,129.19,7.7403]
[1725572345165,20.0,129.23,129.19,7.7403]
[1725572345467,20.0,129.23,129.2,9.28741115]
[1725572345695,20.0,129.23,129.2,7.7398]
[1725572345869,7.7354,129.28,129.23,7.7379]
[1725572346067,27.7357,129.27,129.22,27.0847]
[1725572346560,27.7357,129.27,129.22,28.63192629]
[1725572346943,27.7357,129.27,129.22,27.0847]
[1725572347160,45.0,129.26,129.2,6.0672]
[1725572347370,7.7382,129.23,129.2,6.0672]
[1725572348045,7.7376,129.24,129.2,6.0672]
[1725572348242,20.0,129.23,129.2,6.0672]
[1725572348964,20.0,129.25,129.21,7.7391]
[1725572350163,20.0,129.25,129.22,7.7387]
[1725572350658,20.0,129.25,129.22,7.33090223]
[1725572351363,7.7352,129.28,129.22,16.4923]
[1725572351546,19.3324,129.32,129.23,1.54706554]
[1725572351742,19.3324,129.32,129.24,7.7373]
[1725572352656,7.7346,129.29,129.24,7.7373]
[1725572352845,20.0,129.28,129.24,7.7373]
[1725572353883,7.7337,129.31,129.25,19.3417]
[1725572354185,7.7334,129.31,129.26,7.7358]
[1725572354349,19.3232,129.38,129.27,20.88552532]
[1725572354668,19.3232,129.38,129.27,19.3387]
[1725572355154,7.7328,129.32,129.28,7.735]
[1725572355973,19.3232,129.38,129.28,7.735]
[1725572355974,7.7321,129.33,129.28,7.735]
[1725572356272,7.7321,129.33,129.27,19.3387]
[1725572356273,7.7321,129.33,129.29,7.7345]
[1725572356472,20.0,129.32,129.29,7.7345]
[1725572356669,20.0,129.32,129.28,7.735]
[1725572357064,20.0,129.35,129.28,7.735]
[1725572357259,7.7325,129.33,129.29,7.7343]
[1725572357462,20.0,129.32,129.29,7.7343]
[1725572357773,27.7329,129.32,129.28,7.735]
[1725572357953,20.0,129.32,129.28,7.7346]
[1725572358549,20.0,129.32,129.29,7.7344]
[1725572360149,20.0,129.32,129.27,19.3387]
[1725572360349,7.7358,129.27,129.22,16.4923]
[1725572360551,7.7352,129.28,129.24,7.7374]
[1725572360771,7.7339,129.3,129.26,7.7361]
[1725572360971,20.0,129.29,129.25,19.3418]
[1725572361177,65.0,129.35,129.25,19.3418]
[1725572361562,7.734,129.3,129.26,7.7363]
[1725572361873,20.0,129.29,129.26,7.7363]
[1725572362569,20.0,129.29,129.27,7.7355]
[1725572362778,7.7337,129.31,129.26,7.7361]
[1725572362954,20.0,129.3,129.26,7.7361]
[1725572363481,20.0,129.3,129.27,7.7355]
[1725572363975,7.7337,129.31,129.27,7.7355]
[1725572364181,20.0,129.3,129.27,7.7355]
[1725572369677,27.734,129.3,129.26,7.7362]
[1725572370060,7.7352,129.28,129.24,7.7371]
[1725572370877,7.7352,129.28,129.24,27.0807]
[1725572371882,7.7357,129.27,129.24,27.0807]
[1725572372258,39.3355,129.3,129.22,16.4923]
[1725572372476,45.0,129.29,129.22,16.4923]
[1725572372664,7.7359,129.27,129.23,27.0832]
[1725572374483,20.0,129.28,129.24,7.7373]
[1725572374484,27.7351,129.28,129.24,7.7373]
[1725572374984,27.7351,129.28,129.23,27.083]
[1725572375293,27.7351,129.28,129.24,7.7374]
[1725572375792,20.0,129.28,129.24,7.7374]
[1725572376287,38.6424,129.4,129.22,16.4923]
[1725572376590,19.3262,129.36,129.29,7.7339]
[1725572376796,19.3262,129.36,129.27,19.3389]
[1725572376797,7.7328,129.32,129.28,7.735]
[1725572377774,7.7321,129.33,129.29,7.7343]
[1725572377984,20.0,129.32,129.29,7.7343]
[1725572379094,20.0,129.32,129.29,27.0703]
[1725572379296,20.0,129.32,129.3,7.7339]
[1725572379477,20.0,129.33,129.3,7.7339]
[1725572383270,27.7323,129.33,129.29,27.0703]
[1725572383979,27.7323,129.33,129.3,7.7338]
[1725572391700,7.7328,129.32,129.28,7.7347]
[1725572391902,20.0,129.33,129.23,38.6898]
[1725572392202,7.7352,129.28,129.25,7.7366]
[1725572392982,7.7348,129.29,129.25,7.7366]
[1725572393202,7.7353,129.28,129.24,27.0795]
[1725572393381,7.7361,129.27,129.22,35.839]
[1725572393777,7.7361,129.27,129.23,7.7377]
[1725572394600,7.7353,129.28,129.24,7.7374]
[1725572396102,7.7357,129.27,129.23,7.7381]
[1725572396399,7.7357,129.27,129.22,35.839]
[1725572396400,7.7353,129.28,129.24,7.7373]
[1725572399487,2.46268501,129.32,129.22,16.4923]
[1725572399687,7.7346,129.29,129.25,7.7364]
[1725572400189,7.7355,129.28,129.24,27.0805]
[1725572400390,7.7367,129.26,129.22,24.2309]
[1725572401703,19.338,129.28,129.2,8.76033041]
[1725572401906,65.0,129.27,129.2,6.0672]
[1725572402310,65.0,129.27,129.19,5.08164551]
[1725572402994,7.7399,129.2,129.19,5.08164551]
[1725572403193,52.7399,129.2,129.19,5.08164551]
[1725572403495,72.7399,129.2,129.19,5.08164551]
[1725572405740,7.7409,129.19,129.16,6.38]
[1725572406022,72.7401,129.2,129.16,6.38]
[1725572406508,7.7405,129.19,129.16,6.38]
[1725572410608,72.7401,129.2,129.16,14.1222]
[1725572411622,7.7405,129.19,129.16,14.1222]
[1725572411823,72.74,129.2,129.16,14.1222]
[1725572412319,7.7408,129.19,129.16,6.38]
[1725572414612,7.7413,129.18,129.15,19.3561]
[1725572421827,7.7413,129.18,129.15,27.0989]
[1725572422005,7.7407,129.19,129.16,1.54820927]
[1725572422405,7.7407,129.19,129.15,19.3561]
[1725572422912,65.0,129.2,129.13,0.086606]
[1725572422913,7.7428,129.16,129.13,0.086606]
[1725572423119,7.743,129.15,129.13,0.086606]
[1725572423420,7.7435,129.14,129.13,0.086606]
[1725572424422,52.7435,129.14,129.13,0.086606]
[1725572424720,72.7435,129.14,129.13,0.086606]
[1725572425939,7.746,129.1,129.08,22.0301]
[1725572426415,45.0,129.09,129.06,19.3697]
[1725572426923,52.7467,129.09,129.04,29.7795]
[1725572427116,7.7472,129.08,129.04,22.0301]
[1725572427315,45.0,129.07,129.04,22.0301]
[1725572427537,45.0,129.07,129.0,27.9788435]
[1725572427538,7.7489,129.05,129.0,27.9788435]
[1725572427703,45.0,129.04,129.0,27.9788435]
[1725572427901,45.0,129.04,129.0,20.2270435]
[1725572428132,20.0,129.03,129.0,0.8477435]
[1725572428427,45.0,129.02,129.0,0.8477435]
[1725572429409,7.7513,129.01,129.0,0.8477435]
[1725572429624,20.0,129.01,129.0,0.8477435]
[1725572429916,72.7513,129.01,129.0,0.8477435]
[1725572430324,72.7513,129.01,128.95,13.7957]
[1725572430325,7.7525,128.99,128.95,6.0409]
[1725572430530,45.0,128.98,128.95,6.0409]
[1725572430741,65.0,128.98,128.95,6.0409]
[1725572431237,72.7531,128.98,128.94,35.3777]
[1725572433011,65.0,128.98,128.95,7.7547]
[1725572434013,65.0,128.98,128.94,43.1331]
[1725572435532,65.0,128.98,128.95,7.7549]
[1725572436138,65.0,128.98,128.94,43.1331]
[1725572436313,65.0,128.98,128.95,7.7549]
[1725572437132,20.0,128.98,128.96,7.7542]
[1725572437309,20.0,128.99,128.96,7.7542]
[1725572438034,20.0,128.99,128.96,19.3852]
[1725572438233,7.7509,129.02,128.97,7.7532]
[1725572438611,20.0,129.01,128.97,7.7535]
[1725572439014,20.0,129.01,128.98,7.753]
[1725572441041,7.7496,129.04,129.0,7.7519]
[1725572441216,2.59356856,129.07,129.0,19.3794]
[1725572441413,19.3676,129.09,129.0,19.3794]
[1725572441828,27.41090178,129.09,129.0,19.3794]
[1725572442132,19.3676,129.09,129.0,19.3794]
[1725572442330,7.7489,129.05,129.01,7.7511]
[1725572442648,20.0,129.04,129.02,7.7505]
[1725572442938,7.7485,129.06,129.02,7.7505]
[1725572442939,20.0,129.05,129.02,7.7505]
[1725572443134,7.7495,129.04,129.0,27.1308]
[1725572443334,27.7489,129.05,129.01,7.7509]
[1725572443546,20.0,129.05,129.0,19.3794]
[1725572443723,20.0,129.05,129.01,7.7511]
[1725572443929,45.0,129.04,129.01,7.7511]
[1725572444430,45.0,129.04,129.02,7.7506]
[1725572446542,20.0,129.05,129.02,19.3765]
[1725572446725,7.7469,129.09,129.04,7.7495]
[1725572447140,7.7469,129.09,129.05,7.7489]
[1725572447835,7.746,129.1,129.06,7.7483]
[1725572448349,7.746,129.1,129.05,7.7488]
[1725572448832,2.53450029,129.14,129.06,19.3706]
[1725572449039,7.7463,129.1,129.06,27.1188]
[1725572449244,20.0,129.09,129.06,27.1188]
[1725572449428,45.0,129.08,129.06,27.1188]
[1725572452253,45.0,129.08,129.06,27.1187]
[1725572457630,45.0,129.08,129.06,19.3706]
[1725572457829,20.0,129.07,129.04,7.7493]
[1725572461944,20.0,129.07,129.05,7.7488]
[1725572462150,20.0,129.07,129.04,7.7493]
[1725572465033,20.0,129.07,129.05,7.7488]
[1725572465858,7.7455,129.11,129.07,7.7477]
[1725572466040,7.7448,129.12,129.08,7.747]
[1725572467364,20.0,129.11,129.08,7.747]
[1725572468656,20.0,129.11,129.09,7.7464]
[1725572468958,20.0,129.12,129.09,7.7464]
[1725572469136,45.0,129.11,129.09,7.7464]
[1725572472160,20.0,129.12,129.1,7.7453]
[1725572472356,20.0,129.12,129.07,6.132]
[1725572472357,7.7427,129.16,129.12,7.7446]
[1725572473354,7.7415,129.18,129.14,7.7434]
[1725572473545,7.7415,129.18,129.12,19.3603]
[1725572473744,7.7415,129.18,129.13,7.7437]
[1725572473946,7.7417,129.17,129.13,7.7437]
[1725572474641,45.0,129.16,129.13,7.7437]
[1725572475163,20.0,129.15,129.14,7.7435]
[1725572480967,7.7412,129.18,129.14,7.7435]
[1725572481176,65.0,129.17,129.14,7.7435]
[1725572483365,7.7407,129.19,129.15,7.7425]
[1725572483563,20.0,129.18,129.14,19.3575]
[1725572483762,7.74,129.2,129.16,7.7421]
[1725572483970,20.0,129.23,129.15,6.4972]
[1725572483971,7.7405,129.19,129.15,14.24]
[1725572484171,20.0,129.18,129.15,14.24]
[1725572485570,27.7406,129.19,129.15,14.24]
[1725572487166,27.7406,129.19,129.16,7.7419]
[1725572487167,20.0,129.19,129.16,7.7419]
[1725572487371,27.7406,129.19,129.16,7.7419]
[1725572488242,27.7406,129.19,129.15,30.1798]
[1725572489475,27.7406,129.19,129.16,7.7422]
[1725572491688,20.0,129.19,129.17,7.7416]
[1725572491981,22.61117932,129.24,129.17,7.7416]
[1725572492185,45.0,129.23,129.17,7.7416]
[1725572492370,7.7391,129.22,129.18,27.0932]
[1725572492574,45.0,129.21,129.18,27.0932]
[1725572493174,7.7379,129.24,129.19,7.7401]
[1725572493375,7.7374,129.25,129.2,19.3494]
[1725572493769,7.7375,129.24,129.2,27.0892]
[1725572494074,21.96143352,129.28,129.21,7.7393]
[1725572494912,7.7358,129.27,129.22,7.7387]
[1725572495073,2.62273352,129.28,129.22,7.7387]
[1725572495272,7.7364,129.26,129.21,7.7391]
[1725572496299,65.0,129.25,129.21,7.7391]
[1725572496994,65.0,129.25,129.2,19.3494]
[1725572497191,7.7345,129.3,129.25,7.7367]
[1725572497399,7.7334,129.31,129.25,27.079]
[1725572497803,8.5804435,129.33,129.26,7.7358]
[1725572498011,7.7327,129.32,129.26,7.7358]
[1725572498602,7.7327,129.32,129.27,7.7355]
[1725572498803,8.5798435,129.33,129.28,7.735]
[1725572498987,45.0,129.32,129.28,7.735]
[1725572499590,8.5798435,129.33,129.28,7.735]
[1725572499985,8.5798435,129.33,129.29,13.8582]
[1725572499986,0.8477435,129.33,129.29,13.8582]
[1725572500494,0.8477435,129.33,129.3,1.54644524]
[1725572500686,0.8477435,129.33,129.29,13.8582]
[1725572501607,0.8477435,129.33,129.29,6.1237]
[1725572502286,8.5801435,129.33,129.29,6.1237]
[1725572502592,20.0,129.32,129.29,6.1237]
[1725572502796,20.0,129.32,129.29,13.858]
[1725572503185,20.8477435,129.33,129.29,13.858]
[1725572503700,28.5798435,129.33,129.29,6.1237]
[1725572506308,7.7328,129.32,129.29,6.1237]
[1725572506608,28.5799435,129.33,129.29,6.1237]
[1725572507413,7.7347,129.29,129.25,6.1237]
[1725572507585,20.8477435,129.33,129.24,15.94]
[1725572507586,20.0,129.28,129.24,15.94]
[1725572507988,7.7358,129.27,129.24,15.94]
[1725572508611,20.0,129.28,129.24,23.677]
[1725572508798,45.0,129.27,129.24,23.677]
[1725572512096,7.7345,129.29,129.25,7.7368]
[1725572512704,20.0,129.28,129.25,7.7368]
[1725572513908,45.0,129.27,129.24,15.94]
[1725572515009,52.7359,129.27,129.24,15.94]
[1725572515993,52.7359,129.27,129.24,23.6775]
[1725572517310,52.7359,129.27,129.24,15.94]
[1725572520312,27.7354,129.28,129.24,23.6771]
[1725572521217,7.7369,129.25,129.24,15.94]
[1725572521522,52.7361,129.27,129.24,15.94]
[1725572521692,20.0,129.26,129.24,15.94]
[1725572521888,20.0,129.26,129.24,23.677]
[1725572523094,20.0,129.26,129.24,15.94]
[1725572531230,27.7367,129.26,129.24,15.94]
[1725572546739,27.7367,129.26,129.24,17.48731233]
[1725572546934,2.54050179,129.3,129.24,17.48731233]
[1725572546935,0.8477435,129.33,129.25,1.54721059]
[1725572547135,0.8477435,129.33,129.24,15.94]
[1725572547136,0.8477435,129.33,129.26,1.54695469]
[1725572547325,0.8477435,129.33,129.31,16.4695]
[1725572548359,0.8477435,129.33,129.32,7.7327]
[1725572548540,0.8477435,129.33,129.31,24.2027]
[1725572549815,0.8477435,129.33,129.32,15.33834927]
[1725572551228,0.8477435,129.33,129.32,13.792]
[1725572552421,20.0,129.38,129.33,19.3299]
[1725572552646,27.7288,129.39,129.34,7.7314]
[1725572557528,27.7288,129.39,129.35,7.7308]
[1725572561023,7.7291,129.38,129.35,7.7308]
[1725572561228,20.0,129.37,129.35,7.7308]
[1725572564450,20.0,129.38,129.35,7.7308]
[1725572565357,7.7275,129.41,129.37,27.0529]
[1725572565646,20.4767,129.45,129.37,27.0529]
[1725572565647,7.7268,129.42,129.38,9.2743946]
[1725572565862,8.8537435,129.46,129.39,19.321]
[1725572566048,7.7257,129.44,129.4,9.27265484]
[1725572567123,8.8537435,129.46,129.39,19.321]
[1725572567327,7.725,129.45,129.41,7.7273]
[1725572568242,7.725,129.45,129.4,9.27284842]
[1725572568435,20.0,129.44,129.4,9.27284842]
[1725572568933,8.8537435,129.46,129.41,1.54510966]
[1725572569146,8.8537435,129.46,129.45,7.7249]
[1725572569439,8.8537435,129.46,129.45,9.26964396]
[1725572570230,8.8537435,129.46,129.45,14.2649]
[1725572576159,8.8537435,129.46,129.44,15.8076]
[1725572576661,7.7254,129.45,129.41,7.7269]
[1725572576855,7.7265,129.43,129.39,7.728]
[1725572577066,7.7265,129.43,129.34,51.85730985]
[1725572577067,7.728,129.4,129.36,7.7301]
[1725572577357,45.0,129.44,129.29,697.8714]
[1725572577358,45.0,129.39,129.3,21.2901]
[1725572577658,20.0,129.38,129.3,21.2901]
[1725572578139,19.3174,129.42,129.3,21.2901]
[1725572578140,52.7299,129.37,129.32,7.7322]
[1725572579165,7.7305,129.36,129.32,7.7322]
[1725572579366,7.7305,129.36,129.31,19.3326]
[1725572579367,7.7305,129.36,129.31,27.0658]
[1725572579553,52.7299,129.37,129.31,27.0658]
[1725572580055,52.7299,129.37,129.32,7.7322]
[1725572580365,52.7299,129.37,129.32,7.7326]
[1725572580940,52.7299,129.37,129.33,7.7321]
[1725572581160,45.0,129.37,129.33,7.7321]
[1725572582867,7.7286,129.39,129.34,7.7314]
[1725572583064,72.7292,129.38,129.34,7.7314]
[1725572584079,72.7292,129.38,129.33,7.732]
[1725572584358,72.7292,129.38,129.34,7.7315]
[1725572585366,65.0,129.38,129.34,7.7315]
[1725572586479,72.7296,129.38,129.31,19.3326]
[1725572586648,72.7296,129.38,129.33,7.7316]
[1725572587559,7.7299,129.37,129.31,19.3326]
[1725572587864,45.0,129.36,129.31,19.3326]
[1725572588253,20.0,129.38,129.31,19.3326]
[1725572588254,45.0,129.37,129.31,19.3326]
[1725572588861,45.0,129.37,129.33,7.7321]
[1725572590847,52.7299,129.37,129.32,7.7326]
[1725572591077,20.0,129.36,129.32,7.7326]
[1725572592154,20.0,129.36,129.33,7.7321]
[1725572592355,45.0,129.35,129.33,7.7321]
[1725572593469,45.0,129.35,129.32,7.7326]
[1725572593674,20.0,129.34,129.32,7.7326]
[1725572594956,20.0,129.34,129.31,27.0658]
[1725572595355,45.0,129.33,129.31,27.0658]
[1725572596884,45.0,129.34,129.31,27.0658]
[1725572608687,20.0,129.33,129.31,27.0658]
[1725572612687,20.0,129.33,129.32,7.7327]
[1725572612878,65.0,129.33,129.32,7.7327]
[1725572613480,65.0,129.33,129.31,27.0656]
[1725572621000,65.0,129.33,129.32,7.7327]
[1725572621378,65.0,129.33,129.31,27.0657]
[1725572624691,65.0,129.33,129.31,19.3326]
[1725572624878,65.0,129.33,129.31,27.0658]
[1725572625082,65.0,129.33,129.32,7.7327]
[1725572625483,65.0,129.33,129.31,27.0657]
[1725572629078,65.0,129.33,129.31,19.3326]
[1725572629302,65.0,129.33,129.31,27.0658]
[1725572630922,20.0,129.33,129.31,27.0658]
[1725572631104,20.0,129.34,129.31,27.0658]
[1725572631281,20.0,129.34,129.32,7.7325]
[1725572631610,20.0,129.35,129.32,7.7325]
[1725572631809,45.0,129.34,129.32,7.7325]
[1725572632010,20.0,129.33,129.32,7.7325]
[1725572632196,20.0,129.33,129.31,27.0657]
[1725572633195,20.0,129.33,129.32,7.7327]
[1725572635596,45.0,129.34,129.32,7.7327]
[1725572635789,19.3184,129.41,129.33,40.9362]
[1725572635990,7.7294,129.38,129.34,7.7311]
[1725572636404,19.3184,129.41,129.33,40.9362]
[1725572636405,7.7288,129.39,129.36,7.7301]
[1725572636610,7.7288,129.39,129.35,27.0579]
[1725572637696,20.0,129.38,129.35,27.0579]
[1725572640300,20.0,129.38,129.35,19.3272]
[1725572640497,7.728,129.4,129.36,7.7299]
[1725572640709,20.0,129.39,129.38,7.7291]
[1725572640921,2.52448965,129.45,129.39,7.7282]
[1725572641227,7.7267,129.42,129.38,22.8782]
[1725572641725,8.8537435,129.46,129.4,7.7275]
[1725572642028,7.7262,129.43,129.39,27.0496]
[1725572642195,20.0,129.42,129.39,27.0496]
[1725572643504,20.0,129.42,129.39,19.3212]
[1725572644328,27.7268,129.42,129.39,19.3212]
[1725572646316,27.7268,129.42,129.38,22.8782]
[1725572646519,45.0,129.41,129.38,22.8782]
[1725572647025,20.0,129.4,129.38,22.8782]
[1725572647915,7.7263,129.43,129.39,7.7285]
[1725572648427,45.0,129.42,129.39,7.7285]
[1725572653330,7.7251,129.45,129.41,7.7273]
[1725572653511,20.0,129.44,129.41,7.7273]
[1725572654235,20.0,129.44,129.41,7.727]
[1725572656731,27.7256,129.44,129.41,7.727]
[1725572656920,27.7256,129.44,129.4,27.0469]
[1725572657231,7.7262,129.43,129.4,27.0469]
[1725572657431,52.7262,129.43,129.4,27.0469]
[1725572660622,45.0,129.43,129.4,27.0469]
[1725572664735,27.7257,129.44,129.4,27.0469]
[1725572666548,27.7257,129.44,129.41,7.7273]
[1725572667244,7.7263,129.43,129.4,19.3194]
[1725572667435,20.0,129.44,129.4,27.0473]
[1725572667744,20.0,129.43,129.4,27.0473]
[1725572668536,20.0,129.43,129.41,7.7273]
[1725572669941,20.0,129.43,129.42,7.7267]
[1725572670239,8.8537435,129.46,129.44,7.7254]
[1725572670741,8.8537435,129.46,129.44,27.0393]
[1725572671243,8.8537435,129.46,129.45,7.7249]
[1725572680133,8.8537435,129.46,129.45,29.684]
[1725572681437,2.53982282,129.61,129.54,50.0]
[1725572681636,7.7137,129.64,129.58,7.7172]
[1725572682438,9.5532,129.68,129.58,7.7172]
[1725572682640,7.7125,129.66,129.58,7.7172]
[1725572683254,2.5385415,129.67,129.58,13.9503]
[1725572683556,7.7128,129.66,129.61,7.715]
[1725572684243,7.7119,129.67,129.62,7.7143]
[1725572685755,20.0,129.66,129.62,7.7143]
[1725572687235,20.0,129.66,129.62,19.2864]
[1725572687437,7.7113,129.68,129.63,7.7138]
[1725572688553,7.712,129.67,129.62,27.001]
[1725572688738,45.0,129.66,129.62,27.001]
[1725572689656,20.0,129.65,129.62,27.001]
[1725572691255,45.0,129.66,129.62,19.2864]
[1725572691435,20.0,129.65,129.62,27.001]
[1725572691855,20.0,129.65,129.62,19.2864]
[1725572694969,20.0,129.65,129.62,27.0008]
[1725572695268,27.7133,129.65,129.59,19.2903]
[1725572695552,27.7133,129.65,129.6,1.54291281]
[1725572695758,45.0,129.64,129.6,1.54291281]
[1725572696347,45.0,129.64,129.61,7.7152]
[1725572696750,27.7133,129.65,129.61,23.757]
[1725572697755,45.0,129.64,129.61,23.7571]
[1725572698357,45.0,129.64,129.58,6.2331]
[1725572698358,7.7148,129.62,129.58,29.9921]
[1725572698665,7.7148,129.62,129.58,7.7172]
[1725572698882,52.7154,129.61,129.58,7.7172]
[1725572699666,45.0,129.61,129.58,7.7172]
[1725572700163,7.7161,129.6,129.56,27.013]
[1725572700342,20.0,129.59,129.56,27.013]
[1725572700538,20.0,129.59,129.56,19.2947]
[1725572700944,45.0,129.61,129.56,19.2947]
[1725572700945,20.0,129.6,129.56,19.2947]
[1725572701145,45.0,129.59,129.56,19.2947]
[1725572702253,52.7167,129.59,129.56,19.2947]
[1725572703649,52.7167,129.59,129.55,23.7606]
[1725572703968,20.0,129.6,129.55,17.58546829]
[1725572704170,20.0,129.63,129.55,16.0418]
[1725572705155,45.0,129.62,129.55,16.0418]
[1725572705356,7.7167,129.59,129.55,43.0578]
[1725572705865,45.0,129.58,129.55,43.0578]
[1725572712883,45.0,129.58,129.55,42.52017516]
[1725572714074,20.0,129.57,129.55,15.50417516]
[1725572716269,20.0,129.57,129.55,23.22307516]
[1725572717054,20.0,129.57,129.55,15.50417516]
[1725572718067,20.0,129.57,129.54,14.2905]
[1725572718265,20.0,129.57,129.54,7.7193]
[1725572718266,45.0,129.56,129.54,7.7193]
[1725572723354,52.7185,129.56,129.53,19.3003]
[1725572723556,52.7185,129.56,129.52,16.6654]
[1725572723557,20.0,129.55,129.52,24.3858]
[1725572723780,45.0,129.54,129.52,24.3858]
[1725572725266,45.0,129.54,129.52,16.6654]
[1725572731280,27.7191,129.55,129.53,7.7198]
[1725572731281,20.0,129.55,129.53,7.7198]
[1725572731479,20.0,129.56,129.53,7.7198]
[1725572732889,45.0,129.55,129.53,7.7198]
[1725572737472,45.0,129.55,129.52,43.6867]
[1725572737983,45.0,129.55,129.52,45.23063396]
[1725572738174,45.0,129.55,129.52,43.6867]
[1725572744584,45.0,129.55,129.52,45.2306323]
[1725572747203,45.0,129.55,129.53,7.7202]
[1725572747385,7.718,129.57,129.53,7.7202]